bitfinex/quotes_BTCUSD_20250213
["timestamp","ask_amount","ask_price","bid_price","bid_amount"]
[1739489751686,0.00016103,96622.0,96621.0,0.29398243]
[1739489752811,0.00016103,96622.0,96621.0,0.13873743]
[1739489753011,0.15540503,96622.0,96621.0,0.01213743]
[1739489753339,0.00016103,96622.0,96616.0,0.155252]
[1739489753736,0.00016103,96622.0,96617.0,0.01213743]
[1739489753932,0.00016103,96622.0,96617.0,0.16738743]
[1739489754141,0.00016103,96622.0,96618.0,0.15525]
[1739489754589,0.00016103,96622.0,96613.0,0.0755]
[1739489754802,0.00016103,96622.0,96619.0,0.01213743]
[1739489755005,0.155247,96621.0,96615.0,0.155254]
[1739489755212,0.155247,96621.0,96620.0,0.01213743]
[1739489755444,0.155247,96621.0,96615.0,0.155254]
[1739489755755,0.155247,96621.0,96620.0,0.01213743]
[1739489756057,0.00016103,96622.0,96612.0,0.202159]
[1739489756058,0.155252,96618.0,96612.0,0.202159]
[1739489756231,0.155249,96619.0,96613.0,0.155258]
[1739489756455,0.00016103,96622.0,96614.0,0.155256]
[1739489756659,0.155247,96620.0,96614.0,0.155256]
[1739489756881,0.155247,96620.0,96615.0,0.01213743]
[1739489757116,0.155247,96620.0,96615.0,0.16739243]
[1739489757323,0.155247,96620.0,96615.0,0.01213743]
[1739489757711,0.155247,96620.0,96612.0,0.0469]
[1739489757876,0.20715303,96622.0,96612.0,0.0469]
[1739489757877,0.00016103,96622.0,96612.0,0.0469]
[1739489758077,0.00016103,96622.0,96615.0,0.001]
[1739489758280,0.00016103,96622.0,96616.0,0.01213743]
[1739489758489,0.155252,96617.0,96616.0,0.01213743]
[1739489758805,0.206994,96621.0,96615.0,0.001]
[1739489759018,0.206994,96621.0,96607.0,0.00022365]
[1739489759221,0.155265,96609.0,96607.0,0.00022365]
[1739489759448,0.155266,96608.0,96607.0,0.00022365]
[1739489759805,0.206994,96621.0,96607.0,0.00022365]
[1739489759977,0.00016103,96622.0,96607.0,0.1027273]
[1739489760178,0.00016103,96622.0,96608.0,0.10250365]
[1739489760379,0.00016103,96622.0,96618.0,0.15525]
[1739489760612,0.00016103,96622.0,96617.0,0.155252]
[1739489761022,0.00016103,96622.0,96618.0,0.15525]
[1739489761406,0.00016103,96622.0,96621.0,0.155245]
[1739489764083,0.00016103,96622.0,96621.0,0.33974865]
[1739489765320,0.00016103,96622.0,96621.0,0.34174865]
[1739489765567,0.00016103,96622.0,96621.0,0.33974865]
[1739489766179,0.00016103,96622.0,96621.0,0.18450365]
[1739489766387,0.00016103,96622.0,96621.0,0.18750365]
[1739489766585,0.00016103,96622.0,96621.0,0.006]
[1739489766791,0.15540503,96622.0,96621.0,0.01814358]
[1739489766963,0.15540503,96622.0,96621.0,0.003]
[1739489767162,0.00016103,96622.0,96621.0,0.003]
[1739489767366,0.15540503,96622.0,96621.0,0.006]
[1739489767811,0.15540503,96622.0,96608.0,0.0812]
[1739489767812,0.155247,96620.0,96608.0,0.0812]
[1739489767991,0.206975,96630.0,96609.0,0.10250365]
[1739489768194,0.155244,96622.0,96621.0,0.003]
[1739489768391,0.35112288,96631.0,96609.0,0.11470176]
[1739489768631,0.35112288,96631.0,96609.0,0.10255818]
[1739489768808,0.14414988,96631.0,96610.0,0.01212267]
[1739489769242,0.155263,96610.0,96609.0,5.453e-05]
[1739489769481,0.14414988,96631.0,96609.0,5.453e-05]
[1739489769619,0.155263,96610.0,96609.0,5.453e-05]
[1739489769818,0.20699,96623.0,96609.0,5.453e-05]
[1739489770044,0.20701,96614.0,96609.0,5.453e-05]
[1739489770240,0.155263,96610.0,96609.0,5.453e-05]
[1739489770450,0.14414988,96631.0,96609.0,0.00305453]
[1739489770649,0.155258,96613.0,96609.0,0.00305453]
[1739489770854,0.155258,96613.0,96609.0,5.453e-05]
[1739489771051,0.155263,96611.0,96609.0,5.453e-05]
[1739489771226,0.155263,96610.0,96609.0,5.453e-05]
[1739489771449,0.155263,96610.0,96609.0,0.00205453]
[1739489771647,0.207004,96617.0,96609.0,0.00205453]
[1739489771973,0.155256,96615.0,96609.0,0.00205453]
[1739489772197,0.155256,96615.0,96609.0,0.00405453]
[1739489772365,0.206998,96619.0,96609.0,0.00405453]
[1739489772566,0.206998,96619.0,96609.0,0.00205453]
[1739489772771,0.155258,96614.0,96609.0,0.00505453]
[1739489772971,0.155258,96614.0,96609.0,0.00805453]
[1739489773236,0.206998,96619.0,96609.0,0.00805453]
[1739489773538,0.0001065,96622.0,96609.0,0.00505453]
[1739489773695,0.155263,96610.0,96609.0,0.00505453]
[1739489774259,0.207006,96616.0,96609.0,0.00505453]
[1739489774470,0.155261,96611.0,96609.0,5.453e-05]
[1739489774670,0.207009,96614.0,96609.0,0.00105453]
[1739489774900,0.155263,96610.0,96609.0,0.00105453]
[1739489775129,0.155263,96610.0,96609.0,5.453e-05]
[1739489775931,0.155263,96610.0,96609.0,0.00105453]
[1739489776347,0.155263,96610.0,96609.0,5.453e-05]
[1739489777584,0.155263,96610.0,96609.0,0.00405453]
[1739489785326,0.155263,96610.0,96609.0,0.00427818]
[1739489791308,0.155263,96610.0,96609.0,0.01640576]
[1739489795899,0.0946534,96620.0,96609.0,0.01640576]
[1739489796097,0.0001065,96624.0,96609.0,0.01640576]
[1739489796341,0.155258,96613.0,96609.0,0.01640576]
[1739489796921,0.206994,96621.0,96609.0,0.01440576]
[1739489797124,0.0001065,96624.0,96610.0,0.207017]
[1739489797321,0.0001065,96624.0,96609.0,0.01240576]
[1739489797502,0.155244,96623.0,96615.0,0.155255]
[1739489797698,0.2070955,96624.0,96616.0,0.155252]
[1739489797699,0.1553465,96624.0,96616.0,0.155252]
[1739489797902,0.1553465,96624.0,96617.0,0.01213303]
[1739489798153,0.0001065,96624.0,96617.0,0.155252]
[1739489798407,0.0001065,96624.0,96618.0,0.0755]
[1739489798580,0.0001065,96624.0,96618.0,0.08763303]
[1739489798848,0.1553505,96622.0,96618.0,0.08763303]
[1739489799382,0.0001065,96622.0,96618.0,0.08763303]
[1739489799782,0.0001065,96622.0,96618.0,0.24288203]
[1739489799986,0.0001065,96622.0,96618.0,0.08763303]
[1739489800185,0.0001065,96622.0,96619.0,0.155247]
[1739489800747,0.0001065,96622.0,96620.0,0.01213303]
[1739489801810,0.0001065,96622.0,96620.0,0.16737903]
[1739489802019,0.0001065,96622.0,96618.0,0.0755]
[1739489802237,0.1553515,96622.0,96618.0,0.0755]
[1739489802586,0.1553515,96622.0,96619.0,0.01213303]
[1739489803880,0.1553515,96622.0,96618.0,0.0755]
[1739489804182,0.1553515,96622.0,96619.0,0.01213303]
[1739489804380,0.0001065,96622.0,96619.0,0.01213303]
[1739489804897,0.1553505,96622.0,96618.0,0.0755]
[1739489805246,0.1553505,96622.0,96619.0,0.01213303]
[1739489805451,0.0001065,96622.0,96619.0,0.01213303]
[1739489805653,0.155247,96621.0,96619.0,0.01213303]
[1739489806058,0.155247,96621.0,96618.0,0.0755]
[1739489806269,0.155247,96621.0,96619.0,0.01213303]
[1739489806606,0.155247,96620.0,96619.0,0.01213303]
[1739489807105,0.155247,96620.0,96619.0,0.01211761]
[1739489807449,0.0001065,96622.0,96619.0,0.01211761]
[1739489807891,0.155247,96620.0,96619.0,0.01211761]
[1739489808408,0.1553515,96622.0,96619.0,0.01211761]
[1739489808722,0.155246,96621.0,96620.0,0.01211761]
[1739489808916,0.155246,96621.0,96615.0,0.155254]
[1739489809131,0.155246,96621.0,96616.0,0.01211761]
[1739489809322,0.155246,96621.0,96615.0,0.155254]
[1739489809497,0.0001065,96622.0,96616.0,0.01211761]
[1739489809820,0.0001065,96622.0,96616.0,0.155252]
[1739489809821,0.1553505,96622.0,96616.0,0.155252]
[1739489809979,0.1553505,96622.0,96617.0,0.16736861]
[1739489810422,0.0001065,96622.0,96617.0,0.16736861]
[1739489810646,0.0001065,96622.0,96617.0,0.16736761]
[1739489813649,0.0001065,96622.0,96618.0,0.15525]
[1739489813847,0.2070995,96622.0,96617.0,0.01211761]
[1739489813988,0.155245,96621.0,96615.0,0.155255]
[1739489814192,0.0001065,96622.0,96618.0,0.01211761]
[1739489814412,0.0001065,96622.0,96614.0,0.207009]
[1739489814611,0.0001065,96622.0,96619.0,0.16736461]
[1739489814831,0.0001065,96622.0,96619.0,0.155248]
[1739489814992,0.0001065,96622.0,96620.0,0.01211761]
[1739489816421,0.0001065,96622.0,96619.0,0.155247]
[1739489816647,0.0001065,96622.0,96621.0,0.01211761]
[1739489816854,0.0001065,96622.0,96620.0,0.155246]
[1739489816855,0.0001065,96622.0,96618.0,0.155249]
[1739489817190,0.0001065,96622.0,96617.0,0.207002]
[1739489817442,0.0001065,96622.0,96619.0,0.16736561]
[1739489817562,0.0001065,96622.0,96618.0,0.15525]
[1739489818143,0.0001065,96622.0,96619.0,0.01211761]
[1739489818996,0.0001065,96622.0,96619.0,0.16736461]
[1739489819601,0.0001065,96622.0,96620.0,0.155247]
[1739489819981,0.0001065,96622.0,96613.0,0.079]
[1739489820185,0.0001065,96622.0,96613.0,0.234258]
[1739489820186,0.155249,96619.0,96613.0,0.234258]
[1739489820375,0.155249,96619.0,96614.0,0.155256]
[1739489820571,0.155249,96619.0,96613.0,0.234258]
[1739489821041,0.206994,96621.0,96619.0,0.00022365]
[1739489821405,0.0001065,96622.0,96619.0,0.00022365]
[1739489821594,0.1553505,96622.0,96619.0,0.00022365]
[1739489821796,0.0001065,96622.0,96619.0,0.00022365]
[1739489822001,0.0001065,96622.0,96620.0,0.155247]
[1739489822342,0.0001065,96622.0,96619.0,0.15547165]
[1739489822852,0.0001065,96622.0,96619.0,0.00022365]
[1739489823430,0.0001065,96622.0,96620.0,0.155247]
[1739489823637,0.0001065,96622.0,96619.0,0.00022365]
[1739489823838,0.0001065,96622.0,96619.0,0.15547165]
[1739489824839,0.0001065,96622.0,96621.0,0.204645]
[1739489825045,0.0001065,96622.0,96621.0,0.282745]
[1739489825248,0.0001065,96622.0,96621.0,0.38524865]
[1739489826667,0.0001065,96622.0,96621.0,0.39737289]
[1739489826927,0.0001065,96622.0,96621.0,0.40037289]
[1739489827074,0.0001065,96622.0,96621.0,0.40337289]
[1739489829727,0.0001065,96622.0,96621.0,0.14562424]
[1739489830003,0.0001065,96622.0,96621.0,0.06752424]
[1739489830647,0.0001065,96622.0,96621.0,0.22276924]
[1739489830837,0.0001065,96622.0,96621.0,0.21976924]
[1739489831155,0.0001065,96622.0,96621.0,0.22176924]
[1739489831723,0.0001065,96622.0,96621.0,0.21976924]
[1739489831937,0.0001065,96622.0,96621.0,0.06452424]
[1739489832161,0.0001065,96622.0,96621.0,0.01512424]
[1739489832323,0.1553505,96622.0,96621.0,0.01212424]
[1739489832490,0.1553505,96622.0,96621.0,0.002]
[1739489832893,0.1553505,96622.0,96621.0,0.01412424]
[1739489833098,0.1553505,96622.0,96621.0,0.01512424]
[1739489833299,0.0001065,96622.0,96621.0,0.01512424]
[1739489833643,0.0001065,96622.0,96621.0,0.01412424]
[1739489833840,0.0001065,96622.0,96621.0,0.01612424]
[1739489834016,0.0001065,96622.0,96621.0,0.01412424]
[1739489834343,0.0001065,96622.0,96621.0,0.01212424]
[1739489834540,0.0001065,96622.0,96619.0,0.00022365]
[1739489834968,0.0001065,96622.0,96620.0,0.01212424]
[1739489835322,0.0001065,96622.0,96621.0,0.001]
[1739489835529,0.1553505,96622.0,96621.0,0.01212517]
[1739489835693,0.155247,96620.0,96619.0,0.00022365]
[1739489835896,0.155247,96620.0,96619.0,0.00122365]
[1739489836112,0.155247,96620.0,96619.0,0.00022365]
[1739489836321,0.155247,96620.0,96619.0,0.01234882]
[1739489837145,0.155247,96620.0,96619.0,0.01334882]
[1739489837344,0.155245,96621.0,96619.0,0.00122365]
[1739489837574,0.155245,96621.0,96619.0,0.00222365]
[1739489837768,0.155245,96621.0,96620.0,0.01212517]
[1739489838288,0.155245,96621.0,96619.0,0.00222365]
[1739489838465,0.0001065,96622.0,96619.0,0.00222365]
[1739489838466,0.155247,96620.0,96619.0,0.00122365]
[1739489838800,0.155247,96620.0,96619.0,0.00222365]
[1739489839003,0.155247,96620.0,96619.0,0.00022365]
[1739489839294,0.155247,96620.0,96619.0,0.00122365]
[1739489839496,0.155246,96621.0,96619.0,0.00122365]
[1739489839945,0.155247,96620.0,96619.0,0.00022365]
[1739489840408,0.155247,96620.0,96619.0,0.00222365]
[1739489841017,0.155247,96620.0,96619.0,0.00122365]
[1739489841211,0.0001065,96622.0,96619.0,0.00122365]
[1739489841569,0.0001065,96622.0,96621.0,0.155245]
[1739489842264,0.0001065,96622.0,96621.0,0.16736977]
[1739489842859,0.0001065,96622.0,96621.0,0.24596977]
[1739489843180,0.0001065,96622.0,96621.0,0.24896977]
[1739489843319,0.0001065,96622.0,96621.0,0.25196977]
[1739489846785,0.0001065,96622.0,96621.0,0.35447342]
[1739489847573,0.0001065,96622.0,96621.0,0.19922842]
[1739489847769,0.0001065,96622.0,96621.0,0.35447342]
[1739489848397,0.0001065,96622.0,96621.0,0.35147342]
[1739489848576,0.0001065,96622.0,96621.0,0.34947342]
[1739489848777,0.0001065,96622.0,96621.0,0.19422842]
[1739489848981,0.0001065,96622.0,96621.0,0.01312477]
[1739489849286,0.1553505,96622.0,96621.0,0.01312477]
[1739489849538,0.1553505,96622.0,96621.0,0.001]
[1739489849671,0.1553505,96622.0,96621.0,0.003]
[1739489850074,0.1553505,96622.0,96621.0,0.002]
[1739489850461,0.1553505,96622.0,96619.0,0.00022365]
[1739489850462,0.155247,96620.0,96619.0,0.00022365]
[1739489852449,0.0001065,96622.0,96619.0,0.00022365]
[1739489852649,0.0001065,96622.0,96619.0,0.00222365]
[1739489852849,0.0001065,96622.0,96620.0,0.01212087]
[1739489855413,0.0001065,96622.0,96620.0,0.01312087]
[1739489856342,0.0001065,96622.0,96620.0,0.01412087]
[1739489859460,0.206975,96630.0,96620.0,0.01412087]
[1739489860365,0.206975,96630.0,96620.0,0.01312087]
[1739489860570,0.155239,96625.0,96620.0,0.01312087]
[1739489861215,0.0001065,96721.0,96621.0,0.0762]
[1739489861216,0.01822003,96638.0,96621.0,0.0762]
[1739489861611,0.1553295,96635.0,96622.0,0.01213106]
[1739489861847,0.0001065,96635.0,96623.0,0.0468]
[1739489862432,0.0001065,96635.0,96625.0,0.206985]
[1739489862669,0.0001065,96635.0,96629.0,0.155231]
[1739489863047,0.1553295,96635.0,96630.0,0.01213106]
[1739489863225,0.0001065,96635.0,96630.0,0.01213106]
[1739489863621,0.0001065,96635.0,96627.0,0.206979]
[1739489863822,0.0001065,96635.0,96631.0,0.01213106]
[1739489864025,0.0001065,96635.0,96628.0,0.206977]
[1739489864229,0.0001065,96635.0,96632.0,0.01213106]
[1739489864422,0.0001065,96635.0,96631.0,0.155228]
[1739489865065,0.1553295,96635.0,96632.0,0.01213106]
[1739489865263,0.1553295,96635.0,96625.0,0.206983]
[1739489865487,0.1553295,96635.0,96628.0,0.155233]
[1739489865907,0.0001065,96635.0,96629.0,0.16736306]
[1739489866716,0.0001065,96635.0,96629.0,0.01213106]
[1739489866916,0.0001065,96635.0,96630.0,0.155231]
[1739489867122,0.0001065,96635.0,96631.0,0.0121214]
[1739489867563,0.0001065,96635.0,96630.0,0.155231]
[1739489867747,0.0001065,96635.0,96631.0,0.0121214]
[1739489869131,0.0001065,96635.0,96628.0,0.206977]
[1739489869341,0.0001065,96635.0,96629.0,0.1673524]
[1739489870301,0.0001065,96635.0,96630.0,0.155231]
[1739489870712,0.0001065,96635.0,96628.0,0.206977]
[1739489870919,0.0001065,96635.0,96631.0,0.0121214]
[1739489871119,0.0001065,96635.0,96628.0,0.155233]
[1739489871329,0.0001065,96635.0,96632.0,0.0121214]
[1739489871528,0.0001065,96635.0,96627.0,0.155234]
[1739489871729,0.0001065,96635.0,96633.0,0.0121214]
[1739489871898,0.0001065,96635.0,96634.0,0.0121214]
[1739489872305,0.0001065,96635.0,96627.0,0.155234]
[1739489872485,0.0001065,96635.0,96629.0,0.155232]
[1739489872691,0.0001065,96635.0,96628.0,0.155234]
[1739489872882,0.1553295,96635.0,96628.0,0.155234]
[1739489873096,0.1553295,96635.0,96629.0,0.0121214]
[1739489874868,0.0001065,96635.0,96629.0,0.0121214]
[1739489875228,0.0001065,96635.0,96629.0,0.1673534]
[1739489875428,0.0001065,96635.0,96629.0,0.155232]
[1739489875637,0.0001065,96635.0,96630.0,0.0121214]
[1739489876242,0.0001065,96635.0,96628.0,0.155234]
[1739489876448,0.0001065,96635.0,96631.0,0.0121214]
[1739489876648,0.0001065,96635.0,96628.0,0.155233]
[1739489876947,0.0001065,96635.0,96632.0,0.0121214]
[1739489877087,0.1553295,96635.0,96628.0,0.155233]
[1739489877600,0.1553295,96635.0,96629.0,0.0121214]
[1739489879926,0.17468133,96638.0,96629.0,0.0121214]
[1739489880372,0.155222,96636.0,96629.0,0.1673534]
[1739489881152,0.15522,96637.0,96630.0,0.155231]
[1739489881350,0.17468133,96638.0,96624.0,0.00022365]
[1739489881351,0.0152023,96638.0,96624.0,0.00022365]
[1739489881669,0.0001065,96635.0,96634.0,0.155224]
[1739489882036,0.0001065,96635.0,96634.0,0.16734718]
[1739489882874,0.0001065,96635.0,96634.0,0.01212318]
[1739489883377,0.0001065,96635.0,96634.0,0.16734718]
[1739489888889,0.0001065,96635.0,96634.0,0.01212318]
[1739489889065,0.1553295,96635.0,96634.0,0.01212318]
[1739489889498,0.155224,96634.0,96628.0,0.155234]
[1739489890112,0.1553305,96635.0,96626.0,0.206981]
[1739489890342,0.1553305,96635.0,96628.0,0.155232]
[1739489890540,0.155226,96633.0,96627.0,0.25773765]
[1739489890742,0.155224,96634.0,96628.0,0.155234]
[1739489891155,0.155226,96633.0,96627.0,0.25773865]
[1739489891303,0.155225,96634.0,96628.0,0.155234]
[1739489891513,0.155225,96634.0,96627.0,0.10250365]
[1739489891514,0.0001065,96635.0,96627.0,0.10250365]
[1739489891716,0.155225,96634.0,96628.0,0.155233]
[1739489892528,0.155224,96634.0,96628.0,0.155233]
[1739489893339,0.155224,96634.0,96627.0,0.25773865]
[1739489894263,0.0001065,96635.0,96627.0,0.10250365]
[1739489894422,0.155227,96633.0,96627.0,0.25773865]
[1739489894623,0.0001065,96635.0,96627.0,0.10250365]
[1739489894925,0.206966,96634.0,96627.0,0.10250365]
[1739489895130,0.155226,96633.0,96627.0,0.25773865]
[1739489895754,0.155229,96632.0,96627.0,0.10250365]
[1739489896346,0.206968,96633.0,96627.0,0.10250365]
[1739489896347,0.206968,96633.0,96627.0,0.25773865]
[1739489896608,0.155228,96632.0,96627.0,0.10250365]
[1739489897015,0.15523,96631.0,96627.0,0.10250365]
[1739489897338,0.206966,96634.0,96627.0,0.10250365]
[1739489897539,0.155239,96625.0,96624.0,0.00022365]
[1739489900356,0.0001065,96635.0,96625.0,0.0481]
[1739489900560,0.155229,96632.0,96625.0,0.0481]
[1739489900794,0.155229,96632.0,96626.0,0.01212237]
[1739489900950,0.206966,96634.0,96626.0,0.01212237]
[1739489901125,0.155226,96633.0,96627.0,0.155235]
[1739489901328,0.0001065,96635.0,96627.0,0.206981]
[1739489901553,0.0001065,96635.0,96625.0,0.0481]
[1739489901758,0.0001065,96635.0,96626.0,0.21910537]
[1739489901937,0.0001065,96635.0,96632.0,0.155226]
[1739489902295,0.0001065,96635.0,96632.0,0.155227]
[1739489902492,0.0001065,96635.0,96633.0,0.01212237]
[1739489904137,0.0001065,96635.0,96633.0,0.01312237]
[1739489904509,0.0001065,96635.0,96633.0,0.01412237]
[1739489905835,0.155224,96634.0,96633.0,0.01412237]
[1739489906263,0.155224,96634.0,96633.0,0.002]
[1739489906959,0.15523,96631.0,96627.0,0.00022365]
[1739489907361,0.0001065,96635.0,96628.0,0.01212237]
[1739489907573,0.15523,96631.0,96628.0,0.01212237]
[1739489908347,0.155231,96630.0,96628.0,0.01212237]
[1739489908547,0.2070705,96635.0,96628.0,0.01212237]
[1739489908747,0.155232,96629.0,96628.0,0.01212237]
[1739489909560,0.15523,96631.0,96628.0,0.01212237]
[1739489910005,0.15523,96631.0,96628.0,0.01312237]
[1739489910318,0.15523,96631.0,96628.0,0.01212237]
[1739489910511,0.15523,96631.0,96628.0,0.01412237]
[1739489910723,0.155232,96629.0,96628.0,0.01412237]
[1739489910920,0.155232,96629.0,96628.0,0.01212237]
[1739489911095,0.155232,96629.0,96628.0,0.01312237]
[1739489911473,0.0001065,96635.0,96628.0,0.002]
[1739489911593,0.15523,96631.0,96628.0,0.002]
[1739489911819,0.15523,96631.0,96629.0,0.01212541]
[1739489913218,0.206968,96633.0,96629.0,0.01212541]
[1739489913426,0.155228,96632.0,96629.0,0.01212541]
[1739489913771,0.155228,96632.0,96627.0,0.00022365]
[1739489914056,0.0001065,96635.0,96627.0,0.00022365]
[1739489914210,0.0001065,96635.0,96628.0,0.01212541]
[1739489915089,0.155228,96632.0,96628.0,0.01212541]
[1739489917600,0.155228,96632.0,96628.0,0.01234906]
[1739489918507,0.0001065,96635.0,96629.0,0.155231]
[1739489918898,0.0001065,96635.0,96634.0,0.155224]
[1739489919416,0.0001065,96635.0,96634.0,0.16734941]
[1739489920285,0.0001065,96635.0,96634.0,0.01212541]
[1739489920422,0.0001065,96635.0,96634.0,0.01312541]
[1739489920620,0.0001065,96635.0,96634.0,0.001]
[1739489920988,0.0001065,96635.0,96634.0,0.01412541]
[1739489921098,0.0001065,96635.0,96634.0,0.002]
[1739489921302,0.0001065,96635.0,96634.0,0.01412207]
[1739489922129,0.0001065,96635.0,96634.0,0.16934607]
[1739489922330,0.0001065,96635.0,96634.0,0.01412207]
[1739489922954,0.0001065,96635.0,96634.0,0.16934607]
[1739489927996,0.0001065,96635.0,96634.0,0.24504607]
[1739489929362,0.0001065,96635.0,96634.0,0.39277337]
[1739489933811,0.0001065,96635.0,96634.0,0.39077337]
[1739489934017,0.0001065,96635.0,96634.0,0.39877337]
[1739489935016,0.0001065,96635.0,96634.0,0.29626972]
[1739489937299,0.0001065,96635.0,96634.0,0.39877337]
[1739489944711,0.0001065,96635.0,96634.0,0.39877337]
[1739489964021,0.0001065,96635.0,96634.0,0.39477337]
[1739489964246,0.0001065,96635.0,96634.0,0.39077337]
[1739489964466,0.0001065,96635.0,96634.0,0.39777337]
[1739489964666,0.0001065,96635.0,96634.0,0.40477337]
[1739489966039,0.0001065,96635.0,96634.0,0.43699559]
[1739489972742,0.0001065,96635.0,96634.0,0.91079559]
[1739489972962,5e-07,96635.0,96634.0,0.93379559]
[1739489973521,3.7e-07,96642.0,96641.0,0.15]
[1739489973870,3.7e-07,96642.0,96641.0,0.91497327]
[1739489974024,3.7e-07,96642.0,96641.0,0.92598833]
[1739489974859,3.7e-07,96642.0,96641.0,0.93298833]
[1739489975031,3.7e-07,96642.0,96641.0,0.94998833]
[1739489975232,2.4e-07,96647.0,96645.0,0.01]
[1739489975437,1.3e-07,96647.0,96646.0,0.44266516]
[1739489975638,1.3e-07,96647.0,96646.0,0.44163087]
[1739489975847,1.3e-07,96647.0,96646.0,0.45368033]
[1739489977270,1.3e-07,96647.0,96646.0,0.46068033]
[1739489977475,1.3e-07,96647.0,96646.0,0.46768033]
[1739489978477,1.3e-07,96647.0,96646.0,0.79148033]
[1739489979130,1.3e-07,96647.0,96646.0,0.76848033]
[1739489981069,1.3e-07,96647.0,96646.0,0.78947437]
[1739489988338,0.00010663,96647.0,96646.0,0.78947437]
[1739489988884,0.00010663,96647.0,96646.0,0.81247437]
[1739489993216,0.0946534,96690.0,96657.0,0.206915]
[1739489993427,9.089e-05,96678.0,96658.0,0.10250365]
[1739489993628,9.089e-05,96678.0,96677.0,0.155155]
[1739489994214,9.089e-05,96678.0,96677.0,0.16716105]
[1739489994787,9.089e-05,96678.0,96677.0,0.01200605]
[1739489994995,9.089e-05,96678.0,96677.0,0.16716105]
[1739489995172,9.089e-05,96678.0,96677.0,0.155155]
[1739489995347,9.089e-05,96678.0,96677.0,0.16716105]
[1739489996303,9.089e-05,96678.0,96677.0,0.16816105]
[1739490000735,0.00019739,96678.0,96677.0,0.16816105]
[1739490003316,0.00019739,96678.0,96677.0,0.01300605]
[1739490003516,0.00019739,96678.0,96677.0,0.16816105]
[1739490003915,0.00019739,96678.0,96677.0,0.01300605]
[1739490004314,0.00019739,96678.0,96677.0,0.156155]
[1739490004814,0.00019739,96678.0,96677.0,0.16815285]
[1739490005625,0.00019739,96678.0,96677.0,0.01299785]
[1739490007147,0.00019739,96678.0,96677.0,0.16815285]
[1739490011433,0.00019739,96678.0,96677.0,0.16715285]
[1739490012174,0.00019739,96678.0,96677.0,0.1673765]
[1739490012618,0.00019739,96678.0,96677.0,0.1703765]
[1739490013359,0.00019739,96678.0,96677.0,0.1673765]
[1739490013493,0.00019739,96678.0,96677.0,0.1703765]
[1739490014831,0.00019739,96678.0,96677.0,0.1733765]
[1739490017091,0.00019739,96678.0,96677.0,0.40001441]
[1739490017249,0.00019739,96678.0,96677.0,0.39898015]
[1739490021160,0.00019739,96678.0,96677.0,0.43122146]
[1739490021368,0.00019739,96678.0,96677.0,0.39898015]
[1739490025009,0.00019739,96678.0,96677.0,0.27588015]
[1739490025245,0.15535139,96678.0,96677.0,0.0182215]
[1739490025442,0.00019739,96678.0,96677.0,0.1733765]
[1739490025658,0.00019739,96678.0,96677.0,0.16137865]
[1739490025947,0.00019739,96678.0,96677.0,0.17337352]
[1739490026537,0.00019739,96678.0,96677.0,0.27587717]
[1739490031190,0.00019739,96678.0,96677.0,0.26987717]
[1739490031385,0.00019739,96678.0,96677.0,0.31847717]
[1739490031774,0.00019739,96678.0,96677.0,0.31547717]
[1739490031978,0.00019739,96678.0,96677.0,0.32701583]
[1739490033247,0.00019739,96678.0,96677.0,0.40331583]
[1739490033449,0.00019739,96678.0,96677.0,0.43851329]
[1739490034267,0.00019739,96678.0,96677.0,0.58851329]
[1739490034695,0.00019739,96678.0,96677.0,0.58551329]
[1739490035232,0.00019739,96678.0,96677.0,0.59251329]
[1739490035726,0.00019739,96678.0,96677.0,0.57851329]
[1739490035928,0.00019739,96678.0,96677.0,0.42851329]
[1739490036140,0.00019739,96678.0,96677.0,0.33401583]
[1739490037336,0.00019739,96678.0,96677.0,0.32701583]
[1739490037532,0.06945478,96700.0,96694.0,0.155127]
[1739490037730,0.00043898,96700.0,96695.0,0.01650919]
[1739490037943,0.00043898,96700.0,96685.0,0.206855]
[1739490038143,0.155125,96697.0,96690.0,0.155134]
[1739490038568,0.155125,96697.0,96691.0,0.17161667]
[1739490038745,0.00043898,96700.0,96694.0,0.001]
[1739490038941,0.155122,96698.0,96694.0,0.001]
[1739490039148,0.00043898,96700.0,96695.0,0.01648367]
[1739490039348,0.155121,96699.0,96695.0,0.01648367]
[1739490039579,0.155121,96699.0,96693.0,0.155129]
[1739490039785,0.00043898,96700.0,96696.0,0.17160767]
[1739490039983,0.00043898,96700.0,96696.0,0.155124]
[1739490040214,0.00043898,96700.0,96697.0,0.01648387]
[1739490040638,0.00043898,96700.0,96697.0,0.17160587]
[1739490040829,0.00043898,96700.0,96699.0,0.15512]
[1739490041478,0.00043898,96700.0,96699.0,0.17160387]
[1739490042035,0.00043898,96700.0,96699.0,0.17260387]
[1739490042805,0.00043898,96700.0,96699.0,0.17360387]
[1739490047188,0.00054548,96700.0,96699.0,0.17360387]
[1739490058519,0.00054548,96700.0,96699.0,0.17382752]
[1739490063661,0.00054548,96700.0,96699.0,0.25512752]
[1739490064834,0.00054548,96700.0,96699.0,0.25412752]
[1739490065240,0.00054548,96700.0,96699.0,0.25912752]
[1739490065442,0.00054548,96700.0,96699.0,0.25812752]
[1739490065641,0.00054548,96700.0,96699.0,0.26412752]
[1739490066312,0.00054548,96700.0,96699.0,0.25812752]
[1739490066642,0.00054548,96700.0,96699.0,0.41643117]
[1739490067055,0.00054548,96700.0,96699.0,0.41143117]
[1739490067226,0.00054548,96700.0,96699.0,0.41743117]
[1739490070686,0.00054548,96700.0,96699.0,0.56743117]
[1739490070886,0.00054548,96700.0,96699.0,0.59955983]
[1739490071902,0.00054548,96700.0,96699.0,0.59355983]
[1739490072115,0.00054548,96700.0,96699.0,0.58755983]
[1739490072457,0.00054548,96700.0,96699.0,0.60155983]
[1739490074848,0.00022366,96704.0,96699.0,0.60155983]
[1739490074849,7.2e-07,96704.0,96703.0,0.454414]
[1739490075050,5.3e-07,96704.0,96703.0,0.58904631]
[1739490075252,6.1e-07,96714.0,96713.0,0.305098]
[1739490075428,6.1e-07,96714.0,96713.0,0.58773031]
[1739490075862,6.1e-07,96714.0,96713.0,0.60411788]
[1739490077847,6.1e-07,96714.0,96713.0,0.61611788]
[1739490078228,6.1e-07,96714.0,96713.0,0.61111788]
[1739490078428,6.1e-07,96714.0,96713.0,0.61811788]
[1739490079512,6.1e-07,96714.0,96713.0,1.15331788]
[1739490080270,6.1e-07,96714.0,96713.0,1.17416494]
[1739490084232,6.1e-07,96714.0,96713.0,1.14203628]
[1739490085205,6.1e-07,96714.0,96713.0,1.17401207]
[1739490087667,0.00098637,96731.0,96728.0,0.429374]
[1739490087870,0.00098637,96731.0,96728.0,0.53187765]
[1739490088019,0.00098637,96731.0,96728.0,0.54822141]
[1739490089081,0.00098637,96731.0,96728.0,0.55522141]
[1739490089766,0.00098637,96731.0,96728.0,0.58178326]
[1739490091061,0.00098637,96731.0,96728.0,0.56222141]